[Event "FRA-ch Teams Top 16-B 2022"]
[Site "Chartres"]
[Date "2022.06.11"]
[Round "3.27"]
[White "Benitah, Yohan"]
[Black "Eugene, Floryan"]
[Result "0-1"]
[ECO "E94"]
[WhiteElo "2383"]
[BlackElo "2370"]
[Annotator "TA"]
[PlyCount "76"]
[EventDate "2022.06.09"]
[EventType "team-tourn"]
[EventCountry "FRA"]
[SourceTitle "playchess.com"]
[Source "ChessBase"]
[SourceQuality "1"]
[TimeControl "40/5400+30:1800+30"]

{[%evp 18,76,77,33,97,64,63,62,65,54,71,70,74,64,95,72,59,66,72,66,72,39,27,7,0,-67,-53,-76,-50,-89,-108,-93,-76,-88,-80,-80,-75,-116,-133,-180,-182,-238,-233,-304,-292,-461,-418,-394,-431,-458,-472,-434,-401,-726,-578,-1164,-1093,-1081,-1008,-29985,-29985]} 1. d4 {[%emt 0:00:02]} Nf6 {[%emt 0:00:53]} 2. c4 {[%emt 0:00:03]} g6 {[%emt 0:00:05]} 3. Nc3 {[%emt 0:00:08]} Bg7 {[%emt 0:00:16]} 4. e4 {[%emt 0:00:06]} d6 {[%emt 0:00:05]} 5. Nf3 {[%emt 0:00:05]} O-O {[%emt 0:00:48]} 6. Be2 {[%emt 0:00:05]} Nbd7 {[%emt 0:00:13]} 7. O-O {[%emt 0:00:18]} e5 {[%emt 0:00:09]} 8. Be3 {[%emt 0:02:32]} Qe7 {[%emt 0:00:08]} 9. Qc2 {[%emt 0:07:13]} c6 {[%emt 0:00:16]} 10. Rfe1 {[%emt 0:07:46]} h6 {[%emt 0:02:44] E94: King's Indian: Classical: 6 Be2 e5 7 0-0: Various Black 7th moves.} ({Black should try} 10... exd4 $14 11. Nxd4 (11. Bxd4 b6 $11) 11... Re8) 11. h3 {[%emt 0:02:10]} exd4 {[%emt 0:06:47]} 12. Nxd4 {[%emt 0:00:52]} Re8 {[%emt 0:02:21][%cal Rf6e4] White is slightly better.} 13. Bf1 {[%emt 0:04:03]} Nc5 {[%emt 0:19:57]} 14. f3 {[%emt 0:02:24]} Nh5 {[%emt 0:05:30] [#]} 15. Qf2 $146 {[%emt 0:11:40]} ({Predecessor:} 15. Qd2 Kh7 16. g4 Nf6 17. Rad1 Nfd7 18. b4 Ne6 19. f4 {½-½ (19) Stanojevic,B (2268)-Solomunovic,I (2397) Senta 2008}) 15... g5 {[%emt 0:23:59]} 16. b4 {[%emt 0:05:39][%cal Bb2b4,Bb4b5][%mdl 32]} Na6 {[%emt 0:02:23][%cal Bc5a6,Ba6b8,Bb8d7][%mdl 32]} 17. b5 {[%emt 0:16:53]} Nb8 {[%emt 0:00:26]} 18. Rad1 {[%emt 0:03:41]} Be5 {[%emt 0:01:30]} 19. Nde2 {[%emt 0:02:11]} Qf6 {[%emt 0:05:16]} 20. Nb1 {[%emt 0:10:18]} Be6 {[%emt 0:01:06]} 21. g4 {[%emt 0:06:05]} (21. Bd4 $11) 21... Nf4 $15 {[%emt 0:01:35]} 22. Ng3 {[%emt 0:00:31]} Nd7 {[%emt 0:01:13]} 23. bxc6 {[%emt 0:02:23]} bxc6 {[%emt 0:01:38]} 24. Nd2 {[%emt 0:01:16]} c5 {[%emt 0:05:07]} 25. Rb1 {[%emt 0:02:31]} Nb8 {[%emt 0:02:55] Black is much more active.} 26. Kh1 {[%emt 0:00:34]} Nc6 {[%emt 0:00:15]} 27. Nb3 {[%emt 0:01:40]} Rab8 {[%emt 0:00:40][%cal Ba8b8,Bb8b6,Bb6a6,Ba6a2][%mdl 32]} 28. Bd2 {[%emt 0:05:01]} (28. Bxf4 $17 Bxf4 29. Nh5) 28... Rb6 $19 {[%emt 0:03:20]} 29. Red1 {[%emt 0:01:13]} (29. Bxf4 $142 Bxf4 30. Nh5) 29... Reb8 {[%emt 0:00:17][%cal Oa7a5,Be8b8,Bb8b2,Bb2c2,Bc2d2][%mdl 32]} 30. Rbc1 {[%emt 0:04:28]} a5 {[%emt 0:01:33]} 31. Nxa5 {[%emt 0:01:31]} (31. Bxf4 {was necessary.} gxf4 32. Nh5) 31... Nxa5 {[%emt 0:01:04]} ({Not} 31... Bd4 $2 32. Qh2 Nxa5 33. Bxa5 $19) 32. Bxa5 {[%emt 0:00:01]} Ra6 {[%emt 0:00:18]} 33. Be1 {[%emt 0:00:54]} Rb2 {[%emt 0:00:42]} 34. Rd2 {[%emt 0:00:37]} Raxa2 {[%emt 0:00:54]} 35. Rcc2 {[%emt 0:00:23] [#]} (35. Rxb2 $142 Rxb2 36. Qe3) 35... Nxh3 $1 {[%emt 0:04:56][%mdl 512]} 36. Bxh3 {[%emt 0:00:24] And now Nh5 would win.} (36. Qg2 Nf4) 36... Bxg3 {[%emt 0:01:05]} 37. Qxg3 {[%emt 0:00:15]} Rxc2 {[%emt 0:00:04]} 38. Qxd6 {[%emt 0:00:33]} Rxd2 {[%emt 0:00:13] Weighted Error Value: White=0.77/Black=0.11 (very precise)} 0-1

[Event "FRA-ch Teams Top 16-B 2022"]
[Site "Chartres"]
[Date "2022.06.11"]
[Round "3.28"]
[White "Hutois, Mickael"]
[Black "Brailly-Vignal, Bastien"]
[Result "1-0"]
[ECO "B84"]
[WhiteElo "2238"]
[BlackElo "2372"]
[Annotator "TA"]
[PlyCount "55"]
[EventDate "2022.06.09"]
[EventType "team-tourn"]
[EventCountry "FRA"]
[SourceTitle "playchess.com"]
[Source "ChessBase"]
[SourceQuality "1"]
[TimeControl "40/5400+30:1800+30"]

{[%evp 14,55,34,33,21,-13,-13,-15,-16,-15,-21,-24,14,13,27,0,78,86,97,94,87,35,35,27,70,75,69,13,70,67,74,31,158,65,438,428,1281,1272,29977,29978,29975,29964,5289,2544]} 1. e4 {[%emt 0:00:02]} c5 {[%emt 0:00:19]} 2. Nf3 {[%emt 0:00:06]} d6 {[%emt 0:00:09]} 3. d4 {[%emt 0:00:05]} cxd4 {[%emt 0:00:05]} 4. Nxd4 {[%emt 0:00:05]} Nf6 {[%emt 0:00:05]} 5. Nc3 {[%emt 0:00:05]} a6 {[%emt 0:00:32]} 6. Be2 {[%emt 0:00:18]} e6 {[%emt 0:00:34]} 7. Be3 $1 {[%emt 0:00:21][%mdl 4] is now more promising than 7.0-0.} Nbd7 {[%emt 1:32:16]} 8. g4 {[%emt 0:09:22]} h6 {[%emt 0:00:00] B84: Sicilian Scheveningen: 6 Be2 a6, lines without early Be3.} 9. a4 {[%emt 0:04:53] Prevents b5.} b6 {[%emt 0:00:00] [#]} 10. h4 $146 {[%emt 0:01:07]} ({Predecessor:} 10. Qd2 Bb7 11. f3 Ne5 12. O-O-O Qc7 13. h4 Nc4 14. Bxc4 Qxc4 15. g5 Nd7 16. g6 {½-½ (30) Adair,J (2488)-Schroeder,J (2521) Novi Sad 2016}) 10... Bb7 {[%emt 0:00:00] The position is equal.} 11. f3 {[%emt 0:00:22]} d5 {[%emt 0:00:00]} 12. exd5 {[%emt 0:00:26]} Nxd5 {[%emt 0:00:00]} 13. Nxd5 {[%emt 0:00:06]} Bxd5 {[%emt 0:00:00]} 14. Qd2 {[%emt 0:00:05]} Ne5 {[%emt 0:00:00]} (14... h5 $11 {keeps the balance.}) 15. O-O-O $1 $16 {[%emt 1:20:37]} Qd7 {[%emt 0:00:00]} 16. b3 {[%emt 0:00:00]} Bb7 {[%emt 0:04:30]} 17. f4 {[%emt 0:01:00]} ({White should try} 17. Kb1 $16) 17... Bxh1 $14 {[%emt 0:00:00]} 18. Rxh1 {[%emt 0:00:00]} Ng6 {[%emt 0:00:00]} 19. f5 $1 {[%emt 0:00:00] White is more active.} Ne5 {[%emt 0:00:00]} 20. Bf4 {[%emt 0:00:00]} (20. fxe6 $14 fxe6 21. Bf4) 20... Qd5 {[%emt 0:00:00]} (20... Ba3+ $11 21. Kb1 f6) 21. Rd1 {[%emt 0:00:00] Strongly threatening Qe3.} Bc5 {[%emt 0:02:30]} 22. fxe6 {[%emt 0:00:00]} ({Don't play} 22. Nxe6 Qxd2+ 23. Kxd2 fxe6 $15) (22. Qc3 $5 {[%cal Rd4e6]} Qe4 23. Nxe6 fxe6 24. Qxe5 Qxe5 25. Bxe5 $16) 22... O-O {[%emt 0:00:00] [#]} (22... fxe6 $2 23. Qe3 Nc6 24. Bf3 $18 (24. Qxe6+ Qxe6 25. Nxe6 Ba3+ 26. Kb1 Ra7 $18)) (22... f6 $1 $14) 23. exf7+ {[%emt 0:00:00]} (23. Qe3 $1 $16 {[%cal Re3e5]} Qxe6 24. Qxe5 (24. Nxe6 Bxe3+ 25. Bxe3 fxe6 $14) (24. Bxe5 Rfe8 $17) 24... Qxe5 25. Bxe5) 23... Kh7 $2 {[%emt 0:00:00][%mdl 8192] [#] This costs Black the game.} (23... Kxf7 $2 24. Bxe5 b5 25. Qf4+ Kg8 26. Nf5 $18) (23... Rxf7 $14 24. Bxe5 Qxe5) 24. Qe3 $1 $18 {[%emt 0:00:00]} Qxf7 {[%emt 0:00:00]} (24... Rxf7 $142 25. Bxe5 Re8) 25. Bxe5 {[%emt 0:00:00] Intending Bd3+ and mate. A strong pair of Bishops.} b5 {[%emt 0:00:00]} 26. Bd3+ {[%emt 0:00:00]} Kg8 {[%emt 0:00:00]} 27. Qe4 {[%emt 0:00:00][%csl Gd3][%cal Re4h7]} g6 {[%emt 0:00:16]} 28. Rf1 {[%emt 0:00:00] Weighted Error Value: White=0.14 (very precise) /Black=0.81} 1-0

[Event "FRA-ch Teams Top 16-B 2022"]
[Site "Chartres"]
[Date "2022.06.11"]
[Round "3.29"]
[White "Rouler, Charly"]
[Black "Real, Thibault"]
[Result "0-1"]
[ECO "D78"]
[WhiteElo "2345"]
[BlackElo "2262"]
[Annotator "TA"]
[PlyCount "42"]
[EventDate "2022.06.09"]
[EventType "team-tourn"]
[EventCountry "FRA"]
[SourceTitle "playchess.com"]
[Source "ChessBase"]
[SourceQuality "1"]
[TimeControl "40/5400+30:1800+30"]

{[%evp 13,42,12,20,-13,0,-50,-43,-66,-60,-79,-68,-96,-55,-173,-166,-166,-166,-166,-168,-172,-149,-225,-219,-279,-201,-226,-196,-204,-206,-304,-257]} 1. Nf3 {[%emt 0:00:12]} d5 {[%emt 0:00:29]} 2. g3 {[%emt 0:00:18]} g6 {[%emt 0:00:10]} 3. Bg2 {[%emt 0:00:13]} Bg7 {[%emt 0:00:05]} 4. d4 {[%emt 0:00:04]} c6 {[%emt 0:00:27]} 5. O-O {[%emt 0:00:09]} Nf6 {[%emt 0:00:12]} 6. c4 {[%emt 0:02:32]} O-O {[%emt 0:00:43]} 7. Nbd2 {[%emt 0:00:42]} a5 {[%emt 0:05:43]} 8. Ne5 {[%emt 0:10:57] D78: Fianchetto Grünfeld: 6 0-0 c6.} Ng4 {[%emt 0:00:26] [#]} 9. Ndf3 $146 {[%emt 0:05:25]} (9. Nef3 $11) ({Predecessor:} 9. Nxg4 Bxg4 10. cxd5 cxd5 11. h3 Bf5 12. g4 Bd7 13. Bxd5 Bc6 14. Bxc6 Nxc6 15. Nf3 Nxd4 {0-1 (52) Jobava,B (2721)-Mamedyarov,S (2726) Tbilisi 2012}) 9... Nxe5 $15 {[%emt 0:00:34]} 10. Nxe5 {[%emt 0:00:03] Black is slightly better.} dxc4 {[%emt 0:00:09]} 11. Bf4 {[%emt 0:06:48]} Be6 {[%emt 0:02:09]} 12. Rc1 {[%emt 0:07:32]} Na6 {[%emt 0:00:08][%cal Oa5a4,Bb8a6,Ba6b4,Bb4d3,Bd3c5,Bc5a4,Ba4b2][%mdl 32]} 13. e4 {[%emt 0:06:09] [#]} (13. Nxc4 $15 Bxd4 14. b3) 13... Nb4 $1 $19 {[%emt 0:03:10]} 14. a3 {[%emt 0:13:46]} Bxe5 {[%emt 0:04:14]} ({Stronger than} 14... Nd3 15. Nxd3 cxd3 16. d5 cxd5 17. Qxd3 $17) 15. dxe5 {[%emt 0:01:44]} Nd3 {[%emt 0:00:20]} 16. Rc2 {[%emt 0:00:06]} Qc7 {[%emt 0:08:39]} 17. Qf3 {[%emt 0:04:10]} (17. Be3 $17 {might work better.}) 17... Rfd8 {[%emt 0:01:58]} ({Worse is} 17... Nxe5 18. Qc3 f6 19. Rd1) 18. Rd2 {[%emt 0:01:42]} Nc5 {[%emt 0:09:17]} 19. Rfd1 {[%emt 0:01:22]} b5 {[%emt 0:08:30]} 20. Bf1 {[%emt 0:01:22]} Na4 {[%emt 0:03:23]} 21. Qe3 {[%emt 0:03:57] [#]} (21. Rb1 {was worth a try.}) 21... Nxb2 $1 {[%emt 0:02:39][%mdl 512] Black took control after the opening.  Weighted Error Value: White=0.40/Black=0.11 (very precise)} 0-1

[Event "FRA-ch Teams Top 16-B 2022"]
[Site "Chartres"]
[Date "2022.06.11"]
[Round "3.30"]
[White "Le Pen, Steven"]
[Black "Marzolo, Cyril"]
[Result "0-1"]
[ECO "B80"]
[WhiteElo "2090"]
[BlackElo "2376"]
[Annotator "TA"]
[PlyCount "59"]
[EventDate "2022.06.09"]
[EventType "team-tourn"]
[EventCountry "FRA"]
[SourceTitle "playchess.com"]
[Source "ChessBase"]
[SourceQuality "1"]
[TimeControl "40/5400+30:1800+30"]

{[%evp 17,59,58,53,41,47,39,41,33,41,32,76,67,78,-72,-35,-35,-78,-500,-502,-490,-485,-561,-537,-536,-189,-350,-349,-661,-570,-1120,-683,-821,-797,-992,-984,-1225,-1221,-2557,-2553,-3608,-3086,-2524,-2295,-29996]} 1. e4 {[%emt 0:00:02]} c5 {[%emt 0:16:09]} 2. Nf3 {[%emt 0:00:12]} d6 {[%emt 0:00:41]} 3. d4 {[%emt 0:00:10]} cxd4 {[%emt 0:00:05]} 4. Nxd4 {[%emt 0:00:04]} Nf6 {[%emt 0:00:06]} 5. Nc3 {[%emt 0:00:07]} e6 {[%emt 0:00:19]} 6. Be3 {[%emt 0:00:26]} Be7 {[%emt 0:00:47]} 7. f3 {[%emt 0:05:18]} a6 {[%emt 0:00:34]} 8. Qd2 {[%emt 0:03:16]} b5 {[%emt 0:00:58]} 9. g4 {[%emt 0:12:26][%cal Bg2g4,Bg4g5][%mdl 32]} Bb7 {[%emt 0:00:17]} 10. g5 {[%emt 0:04:53] Prevents h6. B80: Sicilian Scheveningen: 6 g3 and 6 Be3, including English Attack.} Nfd7 {[%emt 0:00:31][%cal Bf6d7,Bd7b6,Bb6c4,Bc4b2][%mdl 32]} 11. a3 {[%emt 0:08:46]} Nb6 {[%emt 0:05:39]} 12. Rg1 {[%emt 0:17:07] White is slightly better.} N8d7 {[%emt 0:01:21]} 13. f4 {[%emt 0:04:13][%cal Bf3f4,Bf4f5][%mdl 32] [#]} Rc8 $146 {[%emt 0:04:17]} ({Predecessor:} 13... Qc7 14. O-O-O Nc5 15. Bxb5+ axb5 16. Ndxb5 Qc6 17. Nxd6+ Bxd6 18. Qxd6 Rc8 19. Qxc6+ Rxc6 {½-½ (36) Balabanov,V (2437)-Millstone,M (2442) ICCF email 2013}) 14. f5 {[%emt 0:07:40]} Ne5 {[%emt 0:03:22] White must now prevent ...Nbc4.} 15. Qf2 {[%emt 0:03:21]} (15. fxe6 $16 {stays on course.} fxe6 16. O-O-O) 15... Nbc4 {[%emt 0:01:30]} (15... Rxc3 $5 16. bxc3 Qc8 $15) 16. fxe6 {[%emt 0:04:26]} O-O {[%emt 0:01:42]} 17. Bh3 $2 {[%emt 0:11:19][%mdl 8192] Loses the game.} (17. Bxc4 $17 Nxc4 18. O-O-O (18. exf7+ Rxf7 19. Nf5 Qf8 $15)) 17... Nxb2 $19 {[%emt 0:02:41][%mdl 64] [#] Discovered Attack} 18. exf7+ {[%emt 0:07:38]} Rxf7 {[%emt 0:01:50]} 19. Be6 {[%emt 0:03:44]} Rxc3 {[%emt 0:07:35]} 20. Bxf7+ {[%emt 0:00:37]} Kh8 $2 {[%emt 0:01:58]} (20... Nxf7 21. g6 hxg6) 21. Bd2 $2 {[%emt 0:02:32]} ({Wrong is} 21. Ne6 $2 Qc8 22. Bd4 Rxc2 $19) (21. Ke2 {was worth a try.} Bxe4 22. Bb3) 21... Rxc2 {[%emt 0:18:53]} 22. Qf5 $2 {[%emt 0:02:22]} (22. Ke2 Rxd2+ 23. Kxd2 Bxe4 24. Ke2) 22... g6 {[%emt 0:08:44] Black is clearly winning.} 23. Qe6 {[%emt 0:00:29]} Rc4 {[%emt 0:01:48]} 24. Be3 {[%emt 0:00:49]} Nbd3+ {[%emt 0:02:59] Pair of Knights!} 25. Ke2 {[%emt 0:00:22] [#]} Rxd4 $1 {[%emt 0:01:08][%mdl 576] Deflection} 26. Bxd4 {[%emt 0:00:38]} (26. Rad1 Rxe4) 26... Nf4+ {[%emt 0:00:17]} 27. Ke3 {[%emt 0:00:21]} Nxe6 {[%emt 0:00:16]} 28. Bxe6 {[%emt 0:00:02]} Bxg5+ {[%emt 0:00:32]} 29. Ke2 {[%emt 0:01:02]} Qf6 {[%emt 0:02:29] ( -> ...Qf3+)} 30. Bc3 {[%emt 0:01:08] Weighted Error Value: White=1.42/Black=0.64} 0-1

[Event "FRA-ch Teams Top 16-B 2022"]
[Site "Chartres"]
[Date "2022.06.11"]
[Round "3.31"]
[White "Crut, Aurelien"]
[Black "Jaouen, Valentin"]
[Result "1-0"]
[ECO "C07"]
[WhiteElo "2355"]
[BlackElo "2121"]
[Annotator "TA"]
[PlyCount "59"]
[EventDate "2022.06.09"]
[EventType "team-tourn"]
[EventCountry "FRA"]
[SourceTitle "playchess.com"]
[Source "ChessBase"]
[SourceQuality "1"]
[TimeControl "40/5400+30:1800+30"]

{[%evp 14,59,25,14,12,12,13,17,34,23,34,20,31,0,0,5,39,15,38,41,48,17,22,21,96,89,79,74,83,77,144,154,259,312,310,305,589,306,506,514,747,742,1593,531,525,508,931,895]} 1. e4 {[%emt 0:00:03]} e6 {[%emt 0:00:24]} 2. d4 {[%emt 0:00:06]} d5 {[%emt 0:00:08]} 3. Nd2 {[%emt 0:00:10]} c5 {[%emt 0:00:54]} 4. Ngf3 {[%emt 0:00:13]} a6 {[%emt 0:03:59]} 5. c3 {[%emt 0:05:05]} Nc6 {[%emt 0:00:41]} 6. Bd3 {[%emt 0:07:06]} cxd4 {[%emt 0:07:28]} 7. cxd4 {[%emt 0:00:27]} dxe4 {[%emt 0:01:05]} 8. Nxe4 {[%emt 0:00:13]} Bb4+ {[%emt 0:03:45] C07: French Tarrasch: 3...c5, 4 Ngf3 and 4 exd5 Qxd5.} 9. Bd2 {[%emt 0:02:26]} Bxd2+ {[%emt 0:11:13]} 10. Qxd2 {[%emt 0:00:36]} Nf6 {[%emt 0:00:17] The position is equal.} 11. O-O {[%emt 0:07:36]} O-O {[%emt 0:03:15]} 12. Rad1 {[%emt 0:05:13]} Nd5 {[%emt 0:06:25]} 13. Bb1 {[%emt 0:11:59] [#]} b6 $146 {[%emt 0:10:37]} ({Predecessor:} 13... Nce7 14. Rfe1 b5 15. g3 Bb7 16. Nc5 Bc6 17. Qe2 Nf6 18. Ne5 Qd5 19. Ne4 Nxe4 20. Nxc6 Nxc6 21. Bxe4 {1-0 (26) Zdrazil,T (2142)-Dostal,R (2112) Jesenik 2019}) 14. Rfe1 {[%emt 0:05:41]} Bb7 {[%emt 0:04:38]} 15. Neg5 {[%emt 0:11:20]} g6 {[%emt 0:02:12]} 16. h4 {[%emt 0:00:37][%cal Oh4h5]} Nf6 {[%emt 0:04:32]} 17. Qf4 {[%emt 0:06:03]} Nh5 {[%emt 0:05:30]} 18. Qg4 {[%emt 0:11:13][%cal Og5h7]} Qf6 {[%emt 0:04:34] [#]} (18... Nf6 $11 {keeps the balance.} 19. Qh3 Ne7) 19. Nxh7 $1 {[%emt 0:04:28]} Kxh7 {[%emt 0:01:00]} 20. Qxh5+ $1 {[%emt 0:00:04]} Kg7 {[%emt 0:00:10]} 21. Qg4 {[%emt 0:01:25] White is more active.} Rh8 {[%emt 0:01:54] Inhibits h5.} (21... Ne7 $142) 22. Be4 $16 {[%emt 0:04:57] Strongly threatening Ng5.} Rad8 {[%emt 0:05:51]} (22... Rab8 $16 23. d5 exd5) 23. Rc1 $18 {[%emt 0:03:26]} Rc8 {[%emt 0:05:21][%cal Oc6d4]} 24. Rc3 {[%emt 0:01:20] Black must now prevent Ng5.} Qe7 {[%emt 0:08:57]} (24... Na5 {is a better defense.} 25. Ng5 Rxc3 26. bxc3 b5 27. Bxb7 Nxb7) 25. Qf4 {[%emt 0:03:40] Hoping for Rec1.} Rh5 $2 {[%emt 0:06:13]} (25... Nb4 26. Rxc8 Rxc8 27. Bxb7 Qxb7) 26. d5 {[%emt 0:02:23] White is clearly winning.} exd5 {[%emt 0:01:20] [#]} 27. Bxg6 {[%emt 0:01:19][%mdl 512]} Rxh4 {[%emt 0:00:59]} (27... Qxe1+ 28. Nxe1) 28. Rxe7 {[%emt 0:02:51]} (28. Qg3 $142 fxg6 29. Rxe7+ Nxe7 30. Qxh4) 28... Rxf4 {[%emt 0:00:09]} 29. Rxb7 {[%emt 0:00:15]} Rxf3 {[%emt 0:00:26]} (29... Nd8 $142 30. Rxc8 Nxb7) 30. gxf3 {[%emt 0:00:40] Weighted Error Value: White=0.57/Black=0.55} 1-0

[Event "FRA-ch Teams Top 16-B 2022"]
[Site "Chartres"]
[Date "2022.06.11"]
[Round "3.32"]
[White "Ruhlmann, Helene"]
[Black "Rollot, Florence"]
[Result "0-1"]
[ECO "B38"]
[WhiteElo "1779"]
[BlackElo "2017"]
[Annotator "TA"]
[PlyCount "56"]
[EventDate "2022.06.09"]
[EventType "team-tourn"]
[EventCountry "FRA"]
[SourceTitle "playchess.com"]
[Source "ChessBase"]
[SourceQuality "1"]
[TimeControl "40/5400+30:1800+30"]

{[%evp 18,56,56,33,65,10,90,77,80,81,95,11,78,42,88,93,105,113,106,87,100,90,102,34,35,39,74,67,70,16,36,-29,-18,-82,-74,-78,-69,-68,-61,-83,-75]} 1. c4 {[%emt 0:00:05]} Nf6 {[%emt 0:00:07]} 2. Nc3 {[%emt 0:00:15]} c5 {[%emt 0:00:07]} 3. Nf3 {[%emt 0:02:20]} g6 {[%emt 0:00:19]} 4. d4 {[%emt 0:02:21]} cxd4 {[%emt 0:00:41]} 5. Nxd4 {[%emt 0:00:04]} Bg7 {[%emt 0:02:22]} 6. e4 {[%emt 0:00:14]} d6 {[%emt 0:00:15]} 7. Be2 {[%emt 0:00:58]} Nc6 {[%emt 0:02:47]} 8. Be3 {[%emt 0:00:30]} Bd7 {[%emt 0:07:27]} 9. O-O {[%emt 0:04:07]} O-O {[%emt 0:11:27]} 10. h3 {[%emt 0:01:39]} Ne8 {[%emt 0:06:22] B38: Sicilian: Maroczy Bind with 5...Bg7 and 7...0-0.} 11. Nf3 {[%emt 0:05:35] [#]} (11. f4 $14) 11... h6 $146 {[%emt 0:05:38]} (11... Bxc3 $11 12. bxc3 Nf6) ({Predecessor:} 11... Qa5 12. Rc1 Bxc3 13. Rxc3 Qxa2 14. Qd2 Qa5 15. c5 Nf6 16. Bd3 d5 17. e5 Nh5 {1-0 (62) Filipovic,B (2330)-Trabattoni,F (2310) Graz 1981}) 12. Qd2 $16 {[%emt 0:09:47]} Kh7 {[%emt 0:00:21] White is better.} 13. Rad1 {[%emt 0:00:08]} Qa5 {[%emt 0:09:41]} 14. a3 {[%emt 0:03:22]} (14. Rb1 $16) 14... Rc8 {[%emt 0:03:58]} (14... Bxc3 $11 15. bxc3 (15. Qxc3 Qxc3 16. bxc3 Nf6 $11) 15... Nf6) 15. Qc1 {[%emt 0:05:16]} Be6 {[%emt 0:05:39]} (15... Bxc3 $14 16. bxc3 Nf6) 16. b4 {[%emt 0:16:47]} Qc7 {[%emt 0:03:46]} 17. Nd5 {[%emt 0:03:40]} Qb8 {[%emt 0:02:25]} 18. Qd2 {[%emt 0:08:35]} b6 {[%emt 0:05:12]} 19. Rc1 {[%emt 0:02:19]} Qb7 {[%emt 0:04:47]} 20. Ne1 {[%emt 0:03:29]} ({Better is} 20. Rfe1 $16) 20... f5 {[%emt 0:12:23]} 21. exf5 {[%emt 0:03:58]} Bxf5 {[%emt 0:00:07]} 22. Nf3 {[%emt 0:02:18]} Nf6 {[%emt 0:04:04]} 23. b5 {[%emt 0:04:40]} (23. Nxf6+ $14 Rxf6 24. Nh4) 23... Na5 $1 $11 {[%emt 0:01:27] [#] And now ...Nb3 would win.} 24. Qd1 {[%emt 0:01:27] Against Nb3} (24. Qb4 $14) 24... Nxd5 {[%emt 0:00:49]} 25. Qxd5 {[%emt 0:09:46]} (25. cxd5 $11 Rxc1 26. Bxc1) 25... Qxd5 $17 {[%emt 0:01:33]} 26. cxd5 {[%emt 0:00:04]} Be4 {[%emt 0:00:27]} 27. Rfd1 {[%emt 0:01:04]} Bb2 {[%emt 0:00:34]} 28. Rxc8 {[%emt 0:00:36]} Rxc8 {[%emt 0:00:02] Weighted Error Value: White=0.35/Black=0.19 (very precise)} 0-1

[Event "FRA-ch Teams Top 16-B 2022"]
[Site "Chartres"]
[Date "2022.06.12"]
[Round "4.1"]
[White "Esipenko, Andrey"]
[Black "Eugene, Floryan"]
[Result "1/2-1/2"]
[ECO "C54"]
[WhiteElo "2709"]
[BlackElo "2370"]
[Annotator "TA"]
[PlyCount "56"]
[EventDate "2022.06.09"]
[EventType "team-tourn"]
[EventCountry "FRA"]
[SourceTitle "playchess.com"]
[Source "ChessBase"]
[SourceQuality "1"]
[TimeControl "40/5400+30:1800+30"]

{[%evp 12,56,16,20,26,26,23,19,17,20,18,15,29,18,16,2,16,12,11,19,26,-3,0,0,0,0,0,-52,-58,-46,-46,-57,-43,-58,-8,-15,-17,-51,0,0,0,0,0,0,0,0,0]} 1. e4 {[%emt 0:00:20]} e5 {[%emt 0:00:09]} 2. Nf3 {[%emt 0:00:12]} Nc6 {[%emt 0:00:05]} 3. Bc4 {[%emt 0:00:39]} Bc5 {[%emt 0:01:18]} 4. c3 {[%emt 0:00:42]} Nf6 {[%emt 0:00:24]} 5. d3 {[%emt 0:00:35]} d6 {[%emt 0:02:12]} 6. O-O {[%emt 0:00:25]} O-O {[%emt 0:01:52]} 7. Re1 {[%emt 0:01:51]} a6 {[%emt 0:11:07] C54: Giuoco Piano: 4 c3 Nf6, main lines with 5 d4 and 5 d3.} 8. a4 {[%emt 0:01:09]} Ba7 {[%emt 0:00:40]} 9. h3 {[%emt 0:00:58]} h6 {[%emt 0:01:10]} 10. Nbd2 {[%emt 0:00:19]} Re8 {[%emt 0:01:53]} 11. b4 $1 {[%emt 0:02:39] 11.b4 scores better than 11.Nf1.} Be6 {[%emt 0:00:26]} 12. Bxe6 {[%emt 0:00:12]} Rxe6 {[%emt 0:00:20]} 13. Bb2 {[%emt 0:05:28]} Re8 {[%emt 0:09:42] [#]} 14. Qc2 $146 {[%emt 0:05:40]} ({Predecessor:} 14. Nf1 b5 15. Ng3 d5 16. Bc1 Qd7 17. Bd2 Rad8 18. Qc1 Qe6 19. exd5 Nxd5 20. d4 {½-½ (33) Goncharov,I (2367)-Babasyan,A (2300) ICCF email 2018}) 14... Qd7 {[%emt 0:02:57]} 15. Nf1 {[%emt 0:02:25]} Nh5 {[%emt 0:11:48][%cal Bf6h5,Bh5f4,Bf4h3][%mdl 32]} 16. b5 {[%emt 0:10:27]} axb5 {[%emt 0:10:06]} 17. axb5 {[%emt 0:00:21]} Ne7 {[%emt 0:00:09][%cal Bc6e7,Be7g6,Bg6e5][%mdl 32]} 18. c4 {[%emt 0:00:38]} Ng6 {[%emt 0:00:42]} 19. d4 {[%emt 0:06:03]} (19. Ne3 $11) 19... Nhf4 $1 $15 {[%emt 0:01:21][%cal Of4g2] And now ...Nxg2! would win.} 20. Ne3 {[%emt 0:16:27][%cal Bf1e3,Be3g2,Bg2f4][%mdl 32] [#]} Nxh3+ $1 {[%emt 0:04:02]} 21. gxh3 {[%emt 0:06:25]} Qxh3 {[%emt 0:00:34]} 22. Nh2 {[%emt 0:01:52]} exd4 {[%emt 0:09:02]} ({Better is} 22... Bxd4 $15 23. Ng2 Bb6) 23. Ng2 $1 $11 {[%emt 0:01:23]} Ne5 {[%emt 0:02:31][%mdl 1024] Black has compensation.} 24. Qd1 {[%emt 0:13:17]} Bc5 {[%emt 0:05:03]} ({But not} 24... Nxc4 25. Bxd4 Bxd4 26. Qxd4 Rxa1 27. Rxa1 $11) (24... Nd3 $15 25. Ra3 {[#]} Nxb2 $1 26. Rxh3 Nxd1 27. Rxd1 Bc5) 25. Nf4 {[%emt 0:03:05] The position is equal.} Qh4 {[%emt 0:01:09]} 26. Ng2 {[%emt 0:02:09] Really sharp!} Qh3 {[%emt 0:01:20] aiming for ...Rxa1.} 27. Nf4 {[%emt 0:02:18]} Qh4 {[%emt 0:00:19]} 28. Ng2 {[%emt 0:03:26]} Qh3 {[%emt 0:00:17] Weighted Error Value: White=0.08 (flawless) /Black=0.07 (flawless)} 1/2-1/2